bitfinex-derivatives/quotes_BTCF0:USTF0_20250921
["timestamp","ask_amount","ask_price","bid_price","bid_amount"]
[1758443765450,0.89978888,115680.0,115670.0,1.12897119]
[1758443765656,1.18395126,115680.0,115670.0,1.12897119]
[1758443766355,0.89978888,115680.0,115670.0,1.12897119]
[1758443766558,1.18395126,115680.0,115670.0,1.12897119]
[1758443772360,1.18395126,115680.0,115670.0,1.16014807]
[1758443772659,1.18395126,115680.0,115670.0,0.87598569]
[1758443774565,1.18395126,115680.0,115670.0,1.16014807]
[1758443783465,1.18379126,115680.0,115670.0,1.16014807]
[1758443784364,0.40231126,115680.0,115670.0,1.16014807]
[1758443784668,1.18379126,115680.0,115670.0,1.16014807]
[1758443785464,0.89962888,115680.0,115670.0,1.16014807]
[1758443785666,1.18379126,115680.0,115670.0,1.16014807]
[1758443786568,0.89962888,115680.0,115670.0,1.16014807]
[1758443786767,1.18379126,115680.0,115670.0,1.16014807]
[1758443798784,1.18379126,115680.0,115670.0,1.05119846]
[1758443799487,0.89962888,115680.0,115670.0,1.05119846]
[1758443799781,1.18379126,115680.0,115670.0,1.05119846]
[1758443800082,1.18379126,115680.0,115670.0,1.16014807]
[1758443801185,0.11814888,115680.0,115670.0,1.16014807]
[1758443801485,1.18371126,115680.0,115670.0,1.16014807]
[1758443803188,0.11814888,115680.0,115670.0,1.16014807]
[1758443803485,1.18371126,115680.0,115670.0,1.16014807]
[1758443803787,0.40231126,115680.0,115670.0,1.16014807]
[1758443804000,1.18371126,115680.0,115670.0,1.16014807]
[1758443805989,0.89954888,115680.0,115670.0,1.16014807]
[1758443806186,1.18371126,115680.0,115670.0,1.16014807]
[1758443806589,0.89954888,115680.0,115670.0,0.59182331]
[1758443806783,1.18371126,115680.0,115670.0,1.16014807]
[1758443808086,1.18371126,115680.0,115670.0,1.05119846]
[1758443808580,1.18371126,115680.0,115670.0,1.16014807]
[1758443809193,0.89954888,115680.0,115670.0,1.16014807]
[1758443809683,1.18371126,115680.0,115670.0,1.16014807]
[1758443811195,0.89954888,115680.0,115670.0,1.16014807]
[1758443811383,1.18371126,115680.0,115670.0,1.16014807]
[1758443812193,1.18371126,115680.0,115670.0,1.2379554]
[1758443812590,0.89954888,115680.0,115670.0,1.12900579]
[1758443812885,1.18371126,115680.0,115670.0,1.12900579]
[1758443813886,1.32573834,115680.0,115670.0,1.41305995]
[1758443816398,1.32573834,115680.0,115670.0,1.32666625]
[1758443817088,1.32573834,115680.0,115670.0,0.47428733]
[1758443817288,1.32573834,115680.0,115670.0,1.32666625]
[1758443819703,0.89954888,115680.0,115670.0,1.32666625]
[1758443820003,1.32573834,115680.0,115670.0,1.32666625]
[1758443822309,1.32573834,115680.0,115670.0,1.24885892]
[1758443822501,1.32573834,115680.0,115670.0,1.35780853]
[1758443826210,0.89954888,115680.0,115670.0,1.35780853]
[1758443826406,1.32573834,115680.0,115670.0,1.35780853]
[1758443828013,1.32573834,115680.0,115670.0,1.44420203]
[1758443828608,0.89954888,115680.0,115670.0,1.44420203]
[1758443828811,1.32573834,115680.0,115670.0,1.44420203]
[1758443832114,0.89954888,115680.0,115670.0,1.44420203]
[1758443832312,1.32573834,115680.0,115670.0,1.44420203]
[1758443836816,1.32573834,115680.0,115670.0,1.35780853]
[1758443837418,1.32573834,115680.0,115670.0,1.24885892]
[1758443837817,1.32573834,115680.0,115670.0,1.35780853]
[1758443838319,1.32573834,115680.0,115670.0,1.32666657]
[1758443840920,1.32573834,115680.0,115670.0,1.41306007]
[1758443843019,1.32573834,115680.0,115670.0,1.33525242]
[1758443844917,1.32573834,115680.0,115670.0,1.44420203]
[1758443845120,1.32573834,115680.0,115670.0,1.33525242]
[1758443848028,1.32573834,115680.0,115670.0,0.4828735]
[1758443848226,1.32573834,115680.0,115670.0,1.24885892]
[1758443848523,1.32573834,115680.0,115670.0,1.35780853]
[1758443852213,1.32573834,115680.0,115670.0,1.43561614]
[1758443852527,1.32573834,115680.0,115670.0,1.32666653]
[1758443854731,1.32573834,115680.0,115670.0,1.24885892]
[1758443856329,1.32573834,115680.0,115670.0,1.32666653]
[1758443856719,1.32573834,115680.0,115670.0,1.24885892]
[1758443860830,1.32573834,115680.0,115670.0,1.32666654]
[1758443862030,1.32573834,115680.0,115670.0,1.41306004]
[1758443862423,1.32573834,115680.0,115670.0,1.33525242]
[1758443868443,1.32573834,115680.0,115670.0,1.44420203]
[1758443870846,1.32573834,115680.0,115670.0,1.33525242]
[1758443871643,1.32573834,115680.0,115670.0,0.4828735]
[1758443871842,1.32573834,115680.0,115670.0,1.33525242]
[1758443872648,1.32573834,115680.0,115670.0,0.4828735]
[1758443872947,1.7519278,115680.0,115670.0,0.39648]
[1758443873251,0.89954888,115680.0,115670.0,0.82266946]
[1758443873548,1.7519278,115680.0,115670.0,0.82266946]
[1758443875952,1.4678561,115680.0,115670.0,0.68063361]
[1758443876252,1.4678561,115680.0,115670.0,0.75844125]
[1758443876550,1.4678561,115680.0,115670.0,0.68063361]
[1758443877854,1.4678561,115680.0,115670.0,0.78958322]
[1758443878552,0.89954888,115680.0,115670.0,0.78958322]
[1758443878752,1.4678561,115680.0,115670.0,0.78958322]
[1758443880551,1.4678561,115680.0,115670.0,0.68063361]
[1758443881054,1.4678561,115680.0,115670.0,0.75844123]
[1758443882552,1.4676161,115680.0,115670.0,0.68063361]
[1758443888560,1.4676161,115680.0,115670.0,0.78958322]
[1758443888858,0.89930888,115680.0,115670.0,0.87597662]
[1758443889058,1.18346249,115680.0,115670.0,1.16013023]
[1758443891061,1.18346249,115680.0,115670.0,1.05118062]
[1758443891861,0.89930888,115680.0,115670.0,1.05118062]
[1758443892058,1.18346249,115680.0,115670.0,1.05118062]
[1758443892758,1.18346249,115680.0,115670.0,0.4828734]
[1758443893063,1.18346249,115680.0,115670.0,1.05118062]
[1758443893461,1.18346249,115680.0,115670.0,0.4828734]
[1758443893667,1.18346249,115680.0,115670.0,1.05118062]
[1758443893862,1.18346249,115680.0,115670.0,0.4828734]
[1758443894065,1.18346249,115680.0,115670.0,1.05118062]
[1758443894259,0.89930888,115680.0,115670.0,1.05118062]
[1758443894462,1.18346249,115680.0,115670.0,1.05118062]
[1758443896968,0.11814888,115680.0,115670.0,1.05118062]
[1758443897154,1.18346249,115680.0,115670.0,1.05118062]
[1758443900259,1.18346249,115680.0,115670.0,1.16013023]
[1758443902365,1.18346249,115680.0,115670.0,1.12898825]
[1758443912381,1.18346249,115680.0,115670.0,1.16013023]
[1758443914078,1.18346249,115680.0,115670.0,1.05118062]
[1758443915582,1.18346249,115680.0,115670.0,1.16013023]
[1758443918687,1.18346249,115680.0,115670.0,0.59182301]
[1758443918883,1.18346249,115680.0,115670.0,1.16013023]
[1758443919279,1.18346249,115680.0,115670.0,0.79933023]
[1758443919479,1.18346249,115680.0,115670.0,1.16013023]
[1758443927500,0.89930888,115680.0,115670.0,1.16013023]
[1758443927699,1.18346249,115680.0,115670.0,1.16013023]
[1758443929900,0.40230249,115680.0,115670.0,1.16013023]
[1758443930798,1.18338249,115680.0,115670.0,1.16013023]
[1758443931699,0.11814888,115680.0,115670.0,0.59182301]
[1758443931900,1.18338249,115680.0,115670.0,1.16013023]
[1758443935093,0.89922888,115680.0,115670.0,1.16013023]
[1758443935294,1.18338249,115680.0,115670.0,1.16013023]
[1758443935601,0.11814888,115680.0,115670.0,1.16013023]
[1758443935802,1.32543227,115680.0,115670.0,1.87043318]
[1758443935993,0.54435227,115680.0,115670.0,1.87043318]
[1758443936194,1.32543227,115680.0,115670.0,1.33528018]
[1758443938903,0.89922888,115680.0,115670.0,1.44422979]
[1758443939200,1.32543227,115680.0,115670.0,1.44422979]
[1758443939804,1.32543227,115680.0,115670.0,0.59182301]
[1758443939994,1.32543227,115680.0,115670.0,1.44422979]
[1758443940805,0.89922888,115680.0,115670.0,1.44422979]
[1758443941101,1.32543227,115680.0,115670.0,1.44422979]
[1758443942401,1.32543227,115680.0,115670.0,1.52203742]
[1758443942700,1.32543227,115680.0,115670.0,1.41308781]
[1758443943398,1.32543227,115680.0,115670.0,0.56068103]
[1758443943597,1.32543227,115680.0,115670.0,1.41308781]
[1758443945004,0.54435227,115680.0,115670.0,1.41308781]
[1758443945203,1.32631227,115680.0,115670.0,1.41308781]
[1758443945709,1.32631227,115680.0,115670.0,0.56068103]
[1758443945903,1.32631227,115680.0,115670.0,1.41308781]
[1758443948910,0.54435227,115680.0,115670.0,1.41308781]
[1758443949308,1.32639227,115680.0,115670.0,1.41308781]
[1758443952411,1.32639227,115680.0,115670.0,1.33528018]
[1758443952603,1.32639227,115680.0,115670.0,1.44422979]
[1758443956116,0.54435227,115680.0,115670.0,1.44422979]
[1758443956324,1.32619227,115680.0,115670.0,1.44422979]
[1758443956615,0.54435227,115680.0,115670.0,1.44422979]
[1758443956807,1.32619227,115680.0,115670.0,1.44422979]
[1758443957314,1.32619227,115680.0,115670.0,1.0180264]
[1758443957615,1.32619227,115680.0,115670.0,1.44422979]
[1758443959418,0.54435227,115680.0,115670.0,1.44422979]
[1758443959618,1.32615227,115680.0,115670.0,1.44422979]
[1758443961622,0.54435227,115680.0,115670.0,1.44422979]
[1758443961823,1.32607227,115680.0,115670.0,1.44422979]
[1758443963525,0.89986888,115680.0,115670.0,1.44422979]
[1758443963716,0.54435227,115680.0,115670.0,1.44422979]
[1758443963916,1.32595227,115680.0,115670.0,1.44422979]
[1758443971926,0.89974888,115680.0,115670.0,1.44422979]
[1758443972222,1.32595227,115680.0,115670.0,1.44422979]
[1758443974327,0.89974888,115680.0,115670.0,1.44422979]
[1758443974529,1.32595227,115680.0,115670.0,1.44422979]
[1758443988031,1.32595227,115680.0,115670.0,0.50542961]
[1758443988336,1.75215566,115680.0,115670.0,0.570833]
[1758443988639,1.75215566,115680.0,115670.0,0.58851652]
[1758443988831,1.75215566,115680.0,115670.0,0.47956691]
[1758443992337,1.75215566,115680.0,115670.0,0.55736542]
[1758443995134,1.75215566,115680.0,115670.0,0.47956691]
[1758443995536,1.75215566,115680.0,115670.0,0.05336352]
[1758443995837,1.46804448,115680.0,115670.0,0.33751132]
[1758443997140,1.46804448,115680.0,115670.0,0.41530983]
[1758444001838,2.11299228,115680.0,115670.0,0.13116203]
[1758444002038,2.36299228,115680.0,115670.0,0.09648203]
[1758444002237,2.36299228,115680.0,115670.0,0.01868352]
[1758444002440,2.36299228,115680.0,115670.0,0.09648203]
[1758444006237,2.36299228,115680.0,115670.0,0.01868352]
[1758444026459,2.00219228,115680.0,115670.0,0.01868352]
[1758444026665,2.72379228,115680.0,115670.0,0.01868352]
[1758444027962,2.72379228,115680.0,115670.0,0.09648203]
[1758444032271,2.72379228,115680.0,115670.0,0.01868352]
[1758444039276,2.47379228,115680.0,115670.0,0.01868352]
[1758444042482,2.47379228,115680.0,115670.0,0.09648203]
[1758444042978,2.47379228,115680.0,115670.0,0.01868352]
[1758444043384,2.72379228,115680.0,115670.0,0.01868352]
[1758444047985,2.72379228,115680.0,115670.0,0.09648203]
[1758444048789,2.72379228,115680.0,115670.0,0.01868352]
[1758444049089,2.72379228,115680.0,115670.0,0.09648203]
[1758444050690,2.72379228,115680.0,115670.0,0.01868352]
[1758444052288,1.94219228,115680.0,115670.0,0.09648203]
[1758444052592,2.72331228,115680.0,115670.0,0.09648203]
[1758444053188,1.94219228,115680.0,115670.0,0.09648203]
[1758444053389,2.72331228,115680.0,115670.0,0.09648203]
[1758444055795,3.14992155,115680.0,115670.0,0.09648203]
[1758444056695,3.14992155,115680.0,115670.0,0.01868352]
[1758444063096,3.14992155,115680.0,115670.0,0.09648203]
[1758444065101,3.14992155,115680.0,115670.0,0.01868352]
[1758444069605,3.14992155,115680.0,115670.0,0.09648203]
[1758444074309,2.42832155,115680.0,115670.0,0.09648203]
[1758444074511,3.14992155,115680.0,115670.0,0.09648203]
[1758444075312,2.42832155,115680.0,115670.0,0.09648203]
[1758444075613,3.14992155,115680.0,115670.0,0.09648203]
[1758444081918,2.42832155,115680.0,115670.0,0.09648203]
[1758444082110,3.14992155,115680.0,115670.0,0.09648203]
[1758444082715,3.14992155,115680.0,115670.0,0.01868352]
[1758444092624,3.14992155,115680.0,115670.0,0.09648203]
[1758444099327,2.17832155,115680.0,115670.0,0.09648203]
[1758444099527,2.89992155,115680.0,115670.0,0.09648203]
[1758444100929,2.17832155,115680.0,115670.0,0.09648203]
[1758444101131,2.89992155,115680.0,115670.0,0.01868352]
[1758444102324,2.89972155,115680.0,115670.0,0.04028352]
[1758444105131,1.26609977,115680.0,115670.0,0.9065153]
[1758444105325,1.26609977,115680.0,115670.0,1.58286619]
[1758444105326,0.89906888,115680.0,115670.0,1.58286619]
[1758444105526,1.32541977,115680.0,115670.0,1.58286619]
[1758444105930,1.32541977,115680.0,115670.0,1.1565153]
[1758444107727,1.32541977,115680.0,115670.0,1.58286619]
[1758444108027,1.32541977,115680.0,115670.0,1.1565153]
[1758444109239,1.32541977,115680.0,115670.0,0.28613]
[1758444109439,1.32541977,115680.0,115670.0,1.13883178]
[1758444111841,1.32541977,115680.0,115670.0,1.21663029]
[1758444112337,1.32541977,115680.0,115670.0,1.13883178]
[1758444112537,1.32541977,115680.0,115670.0,0.71248089]
[1758444113338,1.32541977,115680.0,115670.0,0.7902794]
[1758444113840,0.54449977,115680.0,115670.0,0.7902794]
[1758444114049,1.32537977,115680.0,115670.0,0.7902794]
[1758444114540,1.32537977,115680.0,115670.0,1.21663029]
[1758444117748,1.18317321,115680.0,115670.0,0.93221717]
[1758444120050,1.18317321,115680.0,115670.0,0.85441866]
[1758444122252,1.18317321,115680.0,115670.0,0.93221717]
[1758444122550,1.18317321,115680.0,115670.0,0.85441866]
[1758444125955,0.89902888,115680.0,115670.0,0.85441866]
[1758444126154,1.18317321,115680.0,115670.0,0.85441866]
[1758444129749,0.89902888,115680.0,115670.0,0.85441866]
[1758444129945,1.18317321,115680.0,115670.0,0.85441866]
[1758444130152,1.18317321,115680.0,115670.0,0.28613]
[1758444130360,1.18317321,115680.0,115670.0,0.85441866]
[1758444132551,1.18317321,115680.0,115670.0,0.93221717]
[1758444133849,1.18317321,115680.0,115670.0,0.36392851]
[1758444134045,1.18317321,115680.0,115670.0,0.68221717]
[1758444134245,0.89902888,115680.0,115670.0,0.68221717]
[1758444134449,1.18317321,115680.0,115670.0,0.68221717]
[1758444136957,0.89902888,115680.0,115670.0,0.68221717]
[1758444137159,1.18317321,115680.0,115670.0,0.68221717]
[1758444140756,0.89902888,115680.0,115670.0,0.68221717]
[1758444140956,1.18317321,115680.0,115670.0,0.68221717]
[1758444147350,0.40229321,115680.0,115670.0,0.60441866]
[1758444147557,0.89890888,115680.0,115670.0,0.96637247]
[1758444147758,0.89890888,115680.0,115670.0,0.88856299]
[1758444148059,0.89890888,115680.0,115670.0,0.96637247]
[1758444150461,0.89890888,115680.0,115670.0,0.88856299]
[1758444151159,0.89890888,115680.0,115670.0,0.96635614]
[1758444156062,0.89890888,115680.0,115670.0,0.9975126]
[1758444157156,0.89890888,115680.0,115670.0,0.88856299]
[1758444158764,0.89890888,115680.0,115670.0,0.9975126]
[1758444159455,0.89890888,115680.0,115670.0,1.43608065]
[1758444159659,0.89882888,115680.0,115670.0,1.24936299]
[1758444159860,0.11814888,115680.0,115670.0,1.24936299]
[1758444160161,0.89882888,115680.0,115670.0,1.32713104]
[1758444164067,0.89882888,115680.0,115670.0,1.3583126]
[1758444172274,0.89882888,115680.0,115670.0,0.50587961]
[1758444172574,1.18297321,115680.0,115670.0,1.04297065]
[1758444172873,0.89882888,115680.0,115670.0,1.32711498]
[1758444174471,0.89882888,115680.0,115670.0,1.24936299]
[1758444177877,0.89882888,115680.0,115670.0,1.67547663]
[1758444178477,1.32501109,115680.0,115670.0,1.67547663]
[1758444184579,1.32501109,115680.0,115670.0,1.78442624]
[1758444187883,0.89882888,115680.0,115670.0,1.78442624]
[1758444188081,1.32501109,115680.0,115670.0,1.78442624]
[1758444193589,1.32501109,115680.0,115670.0,1.42362624]
[1758444193788,1.32501109,115680.0,115670.0,1.78442624]
[1758444194589,1.32501109,115680.0,115670.0,0.50587961]
[1758444194783,1.32501109,115680.0,115670.0,1.78442624]
[1758444196393,1.32501109,115680.0,115670.0,1.42362624]
[1758444196589,1.32501109,115680.0,115670.0,1.78442624]
[1758444198389,1.32501109,115680.0,115670.0,0.50587961]
[1758444198583,1.32501109,115680.0,115670.0,1.78442624]
[1758444212521,1.32501109,115680.0,115670.0,1.8622253]
[1758444212716,1.32501109,115680.0,115670.0,1.75327569]
[1758444222726,1.32501109,115680.0,115670.0,1.67547663]
[1758444222925,1.32501109,115680.0,115670.0,1.78442624]
[1758444223327,1.32501109,115680.0,115670.0,1.67547663]
[1758444230836,1.32501109,115680.0,115670.0,1.78442624]
[1758444238635,1.32501109,115680.0,115670.0,1.67547663]
[1758444238943,1.32501109,115680.0,115670.0,1.78442624]
[1758444239746,1.18295737,115680.0,115670.0,1.35826508]
[1758444245254,1.18295737,115680.0,115670.0,1.24931547]
[1758444247052,1.18295737,115680.0,115670.0,1.35826508]
[1758444247854,0.11814888,115680.0,115670.0,1.35826508]
[1758444248057,0.89882888,115680.0,115670.0,1.35826508]
[1758444248648,0.89882888,115680.0,115670.0,1.24931547]
[1758444251757,0.89882888,115680.0,115670.0,1.35826508]
[1758444252558,0.89882888,115680.0,115670.0,1.43607093]
[1758444252950,0.89882888,115680.0,115670.0,1.32712132]
[1758444262767,0.89882888,115680.0,115670.0,1.35826508]
[1758444263969,0.89882888,115680.0,115670.0,0.99746508]
[1758444264168,0.89882888,115680.0,115670.0,1.35826508]
[1758444280093,1.18295737,115680.0,115670.0,0.50587961]
[1758444280390,1.18295737,115680.0,115670.0,1.07413659]
[1758444281291,1.18295737,115680.0,115670.0,0.50587961]
[1758444281492,1.18295737,115680.0,115670.0,1.07413659]
[1758444281790,1.18295737,115680.0,115670.0,1.35826508]
[1758444289297,0.89882888,115680.0,115670.0,1.35826508]
[1758444289484,1.18295737,115680.0,115670.0,1.35826508]
[1758444292690,1.18295737,115680.0,115670.0,1.43607203]
[1758444292885,1.18295737,115680.0,115670.0,1.32712242]
[1758444299801,1.32502295,115680.0,115670.0,1.75331916]
[1758444302506,0.89882888,115680.0,115670.0,1.75331916]
[1758444302802,1.32502295,115680.0,115670.0,1.67551221]
[1758444307110,1.32502295,115680.0,115670.0,1.75331912]
[1758444308405,1.32502295,115680.0,115670.0,1.67551221]
[1758444311604,0.11814888,115680.0,115670.0,1.67551221]
[1758444311812,1.32494295,115680.0,115670.0,1.67551221]
[1758444312314,1.32494295,115680.0,115670.0,1.78446182]
[1758444320713,0.89874888,115680.0,115670.0,1.78446182]
[1758444321010,1.32494295,115680.0,115670.0,1.78446182]
[1758444325312,1.32494295,115680.0,115670.0,0.50587961]
[1758444325613,1.32494295,115680.0,115670.0,1.78446182]
[1758444328219,0.89874888,115680.0,115670.0,1.78446182]
[1758444328412,1.32494295,115680.0,115670.0,1.78446182]
[1758444333123,0.89874888,115680.0,115670.0,1.78446182]
[1758444333323,1.32494295,115680.0,115670.0,1.78446182]
[1758444335931,1.32494295,115680.0,115670.0,0.50587961]
[1758444336227,1.32494295,115680.0,115670.0,1.78446182]
[1758444342630,1.32494295,115680.0,115670.0,1.86226997]
[1758444342938,1.32494295,115680.0,115670.0,1.75332036]
[1758444352838,1.32494295,115680.0,115670.0,1.67551221]
[1758444358044,1.32594295,115680.0,115670.0,1.67551221]
[1758444359744,1.18387439,115680.0,115670.0,1.35825614]
[1758444361548,1.18387439,115680.0,115670.0,1.07413063]
[1758444366350,0.89974888,115680.0,115670.0,1.07413063]
[1758444368250,0.89974888,115680.0,115670.0,1.15193874]
[1758444368650,0.89974888,115680.0,115670.0,1.04298913]
[1758444369853,1.18387439,115680.0,115670.0,1.04298913]
[1758444373655,1.18387439,115680.0,115670.0,1.04198913]
[1758444373852,1.18487439,115680.0,115670.0,1.04298913]
[1758444374248,1.18487439,115680.0,115670.0,0.96518102]
[1758444375053,1.18487439,115680.0,115670.0,1.07413063]
[1758444376356,1.18487439,115680.0,115670.0,1.35825614]
[1758444376757,1.18487439,115680.0,115670.0,1.07413063]
[1758444379563,0.90074888,115680.0,115670.0,1.07413063]
[1758444382657,0.90074888,115680.0,115670.0,1.0429893]
[1758444392567,1.18487439,115680.0,115670.0,1.32711481]
[1758444392764,1.18487439,115680.0,115670.0,1.24930653]
[1758444392968,1.18487439,115680.0,115670.0,1.35825614]
[1758444394767,1.18487439,115680.0,115670.0,1.07413063]
[1758444394968,1.18487439,115680.0,115670.0,0.71333063]
[1758444395372,1.18487439,115680.0,115670.0,0.42920512]
[1758444395570,1.4689999,115680.0,115670.0,0.42920512]
[1758444401081,0.90074888,115680.0,115670.0,0.42920512]
[1758444401280,1.4689999,115680.0,115670.0,0.42920512]
[1758444406083,1.18487439,115680.0,115670.0,0.71333063]
[1758444407083,1.18487439,115680.0,115670.0,0.42920512]
[1758444412687,1.4689999,115680.0,115670.0,0.42920512]
[1758444414189,1.4689999,115680.0,115670.0,0.32025551]
[1758444417188,1.18487439,115680.0,115670.0,0.32025551]
[1758444417888,1.18487439,115680.0,115670.0,0.42920512]
[1758444418088,1.4689999,115680.0,115670.0,0.42920512]
[1758444418690,1.4689999,115680.0,115670.0,0.32025551]
[1758444419488,1.18487439,115680.0,115670.0,0.32025551]
[1758444419898,1.75323052,115680.0,115670.0,0.46237082]
[1758444420191,2.11403052,115680.0,115670.0,0.46237082]
[1758444421995,1.26154888,115680.0,115670.0,0.46237082]
[1758444422292,2.11403052,115680.0,115670.0,0.46237082]
[1758444423193,2.54027134,115680.0,115670.0,0.14507961]
[1758444423394,2.79027134,115680.0,115670.0,0.22287859]
[1758444423689,2.79027134,115680.0,115670.0,0.001]
[1758444424391,2.79027134,115680.0,115670.0,0.07879898]
[1758444424794,2.79027134,115680.0,115670.0,0.001]
[1758444426593,2.00967134,115680.0,115670.0,0.001]
[1758444426892,2.78995134,115680.0,115670.0,0.001]
[1758444439492,2.90075134,115680.0,115670.0,0.001]
[1758444443904,2.12047134,115680.0,115670.0,0.001]
[1758444444094,2.90075134,115680.0,115670.0,0.001]
[1758444454706,2.12047134,115680.0,115670.0,0.001]
[1758444454903,2.90075134,115680.0,115670.0,0.001]
[1758444457005,2.90071134,115680.0,115670.0,0.001]
[1758444457307,2.12047134,115680.0,115670.0,0.001]
[1758444457605,2.90071134,115680.0,115670.0,0.001]
[1758444458508,2.12047134,115680.0,115670.0,0.001]
[1758444458806,2.90071134,115680.0,115670.0,0.001]
[1758444467605,2.12047134,115680.0,115670.0,0.001]
[1758444467803,2.90071134,115680.0,115670.0,0.001]
[1758444473910,2.90067134,115680.0,115670.0,0.001]
[1758444478325,2.17907134,115680.0,115670.0,0.001]
[1758444478625,2.90067134,115680.0,115670.0,0.001]
[1758444479622,2.12047134,115680.0,115670.0,0.001]
[1758444480023,2.90067134,115680.0,115670.0,0.001]
[1758444481727,2.47464197,115680.0,115670.0,0.001]
[1758444482626,1.69444197,115680.0,115670.0,0.001]
[1758444482826,2.47464197,115680.0,115670.0,0.001]
[1758444484525,1.69444197,115680.0,115670.0,0.001]
[1758444484724,2.47460197,115680.0,115670.0,0.001]
[1758444485231,1.69444197,115680.0,115670.0,0.001]
[1758444485426,2.47460197,115680.0,115670.0,0.02254]
[1758444486021,2.47460197,115680.0,115670.0,0.10033898]
[1758444487926,2.47460197,115680.0,115670.0,0.02254]
[1758444488522,1.69444197,115680.0,115670.0,0.02254]
[1758444488832,1.69444197,115680.0,115670.0,0.03569]
[1758444489016,2.47460197,115680.0,115670.0,0.31992103]
[1758444490531,2.47460197,115680.0,115670.0,0.03569]
[1758444491734,1.62190888,115680.0,115670.0,0.03569]
[1758444491930,2.47460197,115680.0,115670.0,0.03569]
[1758444492235,0.48094888,115680.0,115670.0,1.13838309]
[1758444492532,1.54533991,115680.0,115670.0,0.93195104]
[1758444492730,1.18453991,115680.0,115670.0,0.94054526]
[1758444493933,0.40437991,115680.0,115670.0,0.94054526]
[1758444494134,1.18453991,115680.0,115670.0,0.94054526]
[1758444494927,0.40437991,115680.0,115670.0,0.85415206]
[1758444495127,1.18453991,115680.0,115670.0,0.85415206]
[1758444495523,0.40437991,115680.0,115670.0,0.85415206]
[1758444495722,1.18453991,115680.0,115670.0,0.85415206]
[1758444496435,0.40437991,115680.0,115670.0,0.85415206]
[1758444496631,1.18453991,115680.0,115670.0,0.85415206]
[1758444497133,1.18453991,115680.0,115670.0,0.93195104]
[1758444498538,0.40437991,115680.0,115670.0,0.93195104]
[1758444498835,1.18453991,115680.0,115670.0,0.93195104]
[1758444500736,0.90030888,115680.0,115670.0,1.21618207]
[1758444500938,1.18449991,115680.0,115670.0,0.68195104]
[1758444501138,1.18449991,115680.0,115670.0,0.11348898]
[1758444501332,1.18449991,115680.0,115670.0,0.68195104]
[1758444502037,1.18449991,115680.0,115670.0,0.76834424]
[1758444504840,1.18449991,115680.0,115670.0,0.68195104]
[1758444514047,0.90026888,115680.0,115670.0,0.68195104]
[1758444514244,1.18449991,115680.0,115670.0,0.68195104]
[1758444519644,0.90026888,115680.0,115670.0,1.32698207]
[1758444519850,1.18449991,115680.0,115670.0,1.32698207]
[1758444520149,1.18449991,115680.0,115670.0,1.04275104]
[1758444522752,1.18449991,115680.0,115670.0,0.96495206]
[1758444523246,0.90026888,115680.0,115670.0,0.96495206]
[1758444523550,1.18449991,115680.0,115670.0,0.96495206]
[1758444523751,1.18449991,115680.0,115670.0,1.04275104]
[1758444524345,1.18449991,115680.0,115670.0,0.96495206]
[1758444529551,1.18449991,115680.0,115670.0,0.60415206]
[1758444529552,0.90026888,115680.0,115670.0,0.60415206]
[1758444529757,1.46873094,115680.0,115670.0,0.03569]
[1758444529957,1.46873094,115680.0,115670.0,0.31992103]
[1758444530657,2.11376197,115680.0,115670.0,0.03569]
[1758444531457,2.11376197,115680.0,115670.0,0.02254]
[1758444531658,2.11376197,115680.0,115670.0,0.001]
[1758444532661,2.11376197,115680.0,115670.0,0.02397]
[1758444535455,2.11376197,115680.0,115670.0,0.03711]
[1758444537765,2.11376197,115680.0,115670.0,0.32134103]
[1758444540157,2.11376197,115680.0,115670.0,0.03711]
[1758444542169,0.48094888,115680.0,115670.0,0.32134103]
[1758444542374,1.18449991,115680.0,115670.0,0.60557206]
[1758444542866,1.18449991,115680.0,115670.0,0.39914001]
[1758444543057,1.18449991,115680.0,115670.0,0.68337104]
[1758444543661,0.90026888,115680.0,115670.0,0.68337104]
[1758444543861,1.32648664,115680.0,115670.0,0.9673445]
[1758444545366,1.32648664,115680.0,115670.0,0.88954552]
[1758444545568,1.7527044,115680.0,115670.0,0.46332776]
[1758444546270,1.32648664,115680.0,115670.0,0.46332776]
[1758444547473,1.32648664,115680.0,115670.0,0.88954552]
[1758444549871,1.32648664,115680.0,115670.0,0.96730458]
[1758444550577,1.32648664,115680.0,115670.0,0.11486906]
[1758444550775,1.32648664,115680.0,115670.0,0.96730458]
[1758444551577,0.90026888,115680.0,115670.0,0.54108682]
[1758444551766,1.32648664,115680.0,115670.0,0.54108682]
[1758444553771,1.32648664,115680.0,115670.0,0.96730458]
[1758444554973,1.32648664,115680.0,115670.0,0.54108682]
[1758444555175,1.68728664,115680.0,115670.0,0.54108682]
[1758444555375,2.1135044,115680.0,115670.0,0.54108682]
[1758444556776,2.1135044,115680.0,115670.0,0.46332776]
[1758444556977,2.1135044,115680.0,115670.0,0.54109966]
[1758444562087,2.1135044,115680.0,115670.0,0.1148819]
[1758444562288,2.1135044,115680.0,115670.0,0.54109966]
[1758444562887,2.1135044,115680.0,115670.0,0.46332776]
[1758444572294,2.1135044,115680.0,115670.0,0.03711]
[1758444572498,2.1135044,115680.0,115670.0,0.46332776]
[1758444572992,2.1135044,115680.0,115670.0,0.54109966]
[1758444575805,2.1135044,115680.0,115670.0,0.1148819]
[1758444575994,2.1135044,115680.0,115670.0,0.54109966]
[1758444576400,2.1135044,115680.0,115670.0,0.1148819]
[1758444576600,2.1135044,115680.0,115670.0,0.54109966]
[1758444577903,2.1135044,115680.0,115670.0,0.1148819]
[1758444578098,2.1135044,115680.0,115670.0,0.54109966]
[1758444580002,2.1135044,115680.0,115670.0,0.57227737]
[1758444582402,1.7527044,115680.0,115670.0,0.57227737]
[1758444582604,2.1135044,115680.0,115670.0,0.57227737]
[1758444585506,2.1135044,115680.0,115670.0,0.65009073]
[1758444585702,2.1135044,115680.0,115670.0,0.54114112]
[1758444587507,2.1135044,115680.0,115670.0,0.11492336]
[1758444587706,2.1135044,115680.0,115670.0,0.54114112]
[1758444594514,2.1135044,115680.0,115670.0,0.11492336]
[1758444594712,2.1135044,115680.0,115670.0,0.54114112]
[1758444595713,2.1135044,115680.0,115670.0,0.46332776]
[1758444597017,2.1135044,115680.0,115670.0,0.57227737]
[1758444597217,1.68728664,115680.0,115670.0,0.57227737]
[1758444597417,1.68728664,115680.0,115670.0,0.46332776]
[1758444598618,1.68728664,115680.0,115670.0,0.57227737]
[1758444599014,1.68728664,115680.0,115670.0,0.46332776]
[1758444599625,0.90716664,115680.0,115670.0,0.46332776]
[1758444599809,1.68780664,115680.0,115670.0,0.46332776]
[1758444600320,1.68780664,115680.0,115670.0,0.54114127]
[1758444603022,0.90716664,115680.0,115670.0,0.54114127]
[1758444603219,1.68776664,115680.0,115670.0,0.54114127]
[1758444603420,1.68772664,115680.0,115670.0,0.54114127]
[1758444603719,0.48094888,115680.0,115670.0,1.05375823]
[1758444603921,1.68772664,115680.0,115670.0,1.05375823]
[1758444604622,1.26150888,115680.0,115670.0,1.05375823]
[1758444604823,1.68772664,115680.0,115670.0,1.05375823]
[1758444605726,1.54566325,115680.0,115670.0,0.76963145]